[Event "Titled Tuesday Blitz August 08 Early 2023"]
[White "Ventura Bolet, Maxim"]
[Black "Araujo Filho, Luiz Antonio Coel"]
[WhiteFideId "22238824"]
[BlackFideId "2130661"]
[WhiteElo "2391"]
[BlackElo "2195"]
[Result "0-1"]
[Round "9"]
[TimeControl "180+1"]
[Date "2023.08.08"]
[WhiteClock "0:00:05"]
[BlackClock "0:00:03"]
[Board "156"]

1. e4 {[%clk 0:03:00]}  c6 {[%clk 0:02:54]} 2. Nf3 {[%clk 0:02:53]}  d5 {[%clk 0:02:54]} 3. Nc3 {[%clk 0:02:53]}  dxe4 {[%clk 0:02:54]} 4. Nxe4 {[%clk 0:02:54]}  Nf6 {[%clk 0:02:55]} 5. Qe2 {[%clk 0:02:54]}  Nxe4 {[%clk 0:02:55]} 6. Qxe4 {[%clk 0:02:55]}  Be6 {[%clk 0:02:55]} 7. d4 {[%clk 0:02:49]}  g6 {[%clk 0:02:55]} 8. Bf4 {[%clk 0:02:42]}  Bg7 {[%clk 0:02:54]} 9. O-O-O {[%clk 0:02:41]}  Qa5 {[%clk 0:02:47]} 10. a3 {[%clk 0:02:35]}  Nd7 {[%clk 0:02:43]} 11. Bd3 {[%clk 0:01:56]}  O-O {[%clk 0:02:38]} 12. h4 {[%clk 0:01:49]}  c5 {[%clk 0:01:38]} 13. h5 {[%clk 0:01:45]}  c4 {[%clk 0:01:36]} 14. hxg6 {[%clk 0:01:39]}  hxg6 {[%clk 0:01:33]} 15. Ng5 {[%clk 0:00:59]}  Bf5 {[%clk 0:01:17]} 16. Qxe7 {[%clk 0:00:18]}  cxd3 {[%clk 0:01:15]} 17. cxd3 {[%clk 0:00:17]}  Qa4 {[%clk 0:00:43]} 18. Kb1 {[%clk 0:00:15]}  Qxd4 {[%clk 0:00:42]} 19. Rd2 {[%clk 0:00:12]}  Nc5 {[%clk 0:00:29]} 20. Be3 {[%clk 0:00:10]}  Bxd3+ {[%clk 0:00:23]} 21. Ka1 {[%clk 0:00:10]}  Nb3+ {[%clk 0:00:22]} 22. Ka2 {[%clk 0:00:10]}  Qc4 {[%clk 0:00:18]} 23. Rxd3 {[%clk 0:00:05]}  Qxd3 {[%clk 0:00:14]} 24. Qb4 {[%clk 0:00:06]}  Nd4 {[%clk 0:00:08]} 25. Nf3 {[%clk 0:00:02]}  Nf5 {[%clk 0:00:03]} 26. Qg4 {[%clk 0:00:02]}  Nxe3 {[%clk 0:00:03]} 27. fxe3 {[%clk 0:00:02]}  Rfd8 {[%clk 0:00:03]} 28. Qh4 {[%clk 0:00:02]}  Qd5+ {[%clk 0:00:03]} 29. Ka1 {[%clk 0:00:01]}  Qb3 {[%clk 0:00:03]} 30. Qh7+ {[%clk 0:00:02]}  Kf8 {[%clk 0:00:03]} 31. Qh8+ {[%clk 0:00:03]}  Bxh8 {[%clk 0:00:02]} 32. Rxh8+ {[%clk 0:00:04]}  Kg7 {[%clk 0:00:03]} 33. Rh4 {[%clk 0:00:05]}  Rd1# {[%clk 0:00:03]} 0-1


[Site "https://www.chess.com"]

[Event "Titled Tuesday Blitz August 08 Early 2023"]
[White "Tarnowska, Aleksandra"]
[Black "Nosacheva, Mariya"]
[WhiteFideId "1180967"]
[BlackFideId "34111422"]
[WhiteElo "2179"]
[BlackElo "2391"]
[Result "1-0"]
[Round "9"]
[TimeControl "180+1"]
[Date "2023.08.08"]
[WhiteClock "0:00:07"]
[BlackClock "0:00:00"]
[Board "157"]

1. e4 {[%clk 0:03:00]}  c5 {[%clk 0:02:56]} 2. Nf3 {[%clk 0:03:00]}  Nc6 {[%clk 0:02:51]} 3. Bb5 {[%clk 0:02:59]}  g6 {[%clk 0:02:50]} 4. O-O {[%clk 0:02:59]}  Bg7 {[%clk 0:02:47]} 5. c3 {[%clk 0:02:58]}  Nf6 {[%clk 0:02:37]} 6. Re1 {[%clk 0:02:51]}  a6 {[%clk 0:02:33]} 7. Bxc6 {[%clk 0:02:27]}  dxc6 {[%clk 0:02:30]} 8. e5 {[%clk 0:02:13]}  Nd5 {[%clk 0:02:28]} 9. d4 {[%clk 0:02:08]}  cxd4 {[%clk 0:02:26]} 10. Qxd4 {[%clk 0:02:04]}  O-O {[%clk 0:02:25]} 11. Nbd2 {[%clk 0:01:59]}  h5 {[%clk 0:02:15]} 12. Ne4 {[%clk 0:01:49]}  Bg4 {[%clk 0:02:11]} 13. Nfd2 {[%clk 0:01:22]}  Nf4 {[%clk 0:02:04]} 14. Qxd8 {[%clk 0:01:13]}  Rfxd8 {[%clk 0:02:05]} 15. Nf3 {[%clk 0:01:13]}  Bxf3 {[%clk 0:02:04]} 16. Bxf4 {[%clk 0:01:12]}  Bg4 {[%clk 0:01:58]} 17. h3 {[%clk 0:01:01]}  Bf5 {[%clk 0:01:55]} 18. Ng5 {[%clk 0:00:49]}  e6 {[%clk 0:01:39]} 19. Nf3 {[%clk 0:00:43]}  c5 {[%clk 0:01:35]} 20. Rad1 {[%clk 0:00:42]}  Rd5 {[%clk 0:01:28]} 21. c4 {[%clk 0:00:39]}  Rd3 {[%clk 0:01:24]} 22. Rxd3 {[%clk 0:00:38]}  Bxd3 {[%clk 0:01:24]} 23. b3 {[%clk 0:00:37]}  Bf5 {[%clk 0:01:22]} 24. Rd1 {[%clk 0:00:36]}  b5 {[%clk 0:01:20]} 25. Rd7 {[%clk 0:00:31]}  Bb1 {[%clk 0:01:15]} 26. a3 {[%clk 0:00:18]}  Bc2 {[%clk 0:01:13]} 27. cxb5 {[%clk 0:00:08]}  axb5 {[%clk 0:01:11]} 28. b4 {[%clk 0:00:09]}  c4 {[%clk 0:01:10]} 29. Ng5 {[%clk 0:00:09]}  Rf8 {[%clk 0:00:57]} 30. Rb7 {[%clk 0:00:09]}  Ba4 {[%clk 0:00:56]} 31. Rc7 {[%clk 0:00:08]}  Rd8 {[%clk 0:00:46]} 32. Nxf7 {[%clk 0:00:04]}  Rd1+ {[%clk 0:00:44]} 33. Kh2 {[%clk 0:00:04]}  c3 {[%clk 0:00:45]} 34. Ng5 {[%clk 0:00:01]}  c2 {[%clk 0:00:42]} 35. Rc8+ {[%clk 0:00:01]}  Bf8 {[%clk 0:00:42]} 36. Nxe6 {[%clk 0:00:02]}  Kf7 {[%clk 0:00:42]} 37. Rxf8+ {[%clk 0:00:02]}  Kxe6 {[%clk 0:00:42]} 38. Rc8 {[%clk 0:00:02]}  Kd7 {[%clk 0:00:41]} 39. Rc3 {[%clk 0:00:03]}  Ke6 {[%clk 0:00:41]} 40. h4 {[%clk 0:00:02]}  Kf5 {[%clk 0:00:42]} 41. Kg3 {[%clk 0:00:03]}  Rd4 {[%clk 0:00:40]} 42. Be3 {[%clk 0:00:02]}  Rg4+ {[%clk 0:00:40]} 43. Kh3 {[%clk 0:00:03]}  Kxe5 {[%clk 0:00:36]} 44. Rc5+ {[%clk 0:00:03]}  Ke4 {[%clk 0:00:34]} 45. Rc6 {[%clk 0:00:02]}  Kd3 {[%clk 0:00:34]} 46. Bg5 {[%clk 0:00:02]}  Ke2 {[%clk 0:00:32]} 47. f3 {[%clk 0:00:02]}  Rc4 {[%clk 0:00:31]} 48. Re6+ {[%clk 0:00:03]}  Kf2 {[%clk 0:00:29]} 49. Be3+ {[%clk 0:00:03]}  Kf1 {[%clk 0:00:30]} 50. Bd2 {[%clk 0:00:02]}  c1=Q {[%clk 0:00:29]} 51. Bxc1 {[%clk 0:00:03]}  Rxc1 {[%clk 0:00:29]} 52. Rxg6 {[%clk 0:00:04]}  Rc3 {[%clk 0:00:28]} 53. Rg5 {[%clk 0:00:04]}  Rxa3 {[%clk 0:00:27]} 54. Rxh5 {[%clk 0:00:04]}  Kf2 {[%clk 0:00:28]} 55. Rg5 {[%clk 0:00:04]}  Bb3 {[%clk 0:00:27]} 56. h5 {[%clk 0:00:04]}  Be6+ {[%clk 0:00:28]} 57. Kh4 {[%clk 0:00:04]}  Ra4 {[%clk 0:00:28]} 58. h6 {[%clk 0:00:02]}  Rxb4+ {[%clk 0:00:28]} 59. Kh5 {[%clk 0:00:03]}  Rb1 {[%clk 0:00:27]} 60. Kg6 {[%clk 0:00:03]}  Rh1 {[%clk 0:00:26]} 61. f4 {[%clk 0:00:02]}  Bd7 {[%clk 0:00:21]} 62. Kg7 {[%clk 0:00:03]}  b4 {[%clk 0:00:15]} 63. h7 {[%clk 0:00:02]}  b3 {[%clk 0:00:15]} 64. Rd5 {[%clk 0:00:02]}  b2 {[%clk 0:00:14]} 65. Rd2+ {[%clk 0:00:02]}  Ke3 {[%clk 0:00:13]} 66. Rxb2 {[%clk 0:00:02]}  Kxf4 {[%clk 0:00:12]} 67. h8=Q {[%clk 0:00:02]}  Rxh8 {[%clk 0:00:13]} 68. Kxh8 {[%clk 0:00:03]}  Bg4 {[%clk 0:00:13]} 69. Kg7 {[%clk 0:00:03]}  Kg3 {[%clk 0:00:13]} 70. Kf6 {[%clk 0:00:03]}  Bd7 {[%clk 0:00:12]} 71. Kg5 {[%clk 0:00:02]}  Bc6 {[%clk 0:00:12]} 72. Rc2 {[%clk 0:00:02]}  Bxg2 {[%clk 0:00:12]} 73. Rc3+ {[%clk 0:00:03]}  Bf3 {[%clk 0:00:11]} 74. Kf5 {[%clk 0:00:04]}  Kf2 {[%clk 0:00:12]} 75. Kf4 {[%clk 0:00:04]}  Bd5 {[%clk 0:00:12]} 76. Rc2+ {[%clk 0:00:04]}  Ke1 {[%clk 0:00:11]} 77. Ke3 {[%clk 0:00:05]}  Kf1 {[%clk 0:00:10]} 78. Rd2 {[%clk 0:00:05]}  Bc6 {[%clk 0:00:08]} 79. Rb2 {[%clk 0:00:04]}  Bd5 {[%clk 0:00:08]} 80. Kf4 {[%clk 0:00:05]}  Bc6 {[%clk 0:00:07]} 81. Kg3 {[%clk 0:00:05]}  Bd5 {[%clk 0:00:05]} 82. Rc2 {[%clk 0:00:05]}  Bb7 {[%clk 0:00:05]} 83. Rc1+ {[%clk 0:00:05]}  Ke2 {[%clk 0:00:04]} 84. Rc3 {[%clk 0:00:06]}  Bd5 {[%clk 0:00:03]} 85. Kf4 {[%clk 0:00:06]}  Kd2 {[%clk 0:00:03]} 86. Rc5 {[%clk 0:00:05]}  Bb7 {[%clk 0:00:02]} 87. Ke5 {[%clk 0:00:06]}  Ke3 {[%clk 0:00:02]} 88. Rc3+ {[%clk 0:00:06]}  Kf2 {[%clk 0:00:01]} 89. Kd4 {[%clk 0:00:07]}  Bc6 {[%clk 0:00:00]} 90. Rxc6 {[%clk 0:00:07]} 1-0


[Site "https://www.chess.com"]

[Event "Titled Tuesday Blitz August 08 Early 2023"]
[White "MarijaKuznecova"]
[Black "Saim, Mohamed Ilias"]
[BlackFideId "7900465"]
[WhiteElo "2345"]
[BlackElo "2012"]
[Result "1-0"]
[Round "9"]
[TimeControl "180+1"]
[Date "2023.08.08"]
[WhiteClock "0:00:04"]
[BlackClock "0:00:00"]
[Board "160"]

1. e4 {[%clk 0:03:00]}  c6 {[%clk 0:02:56]} 2. d4 {[%clk 0:03:00]}  d5 {[%clk 0:02:57]} 3. e5 {[%clk 0:03:00]}  Bf5 {[%clk 0:02:56]} 4. Nf3 {[%clk 0:03:01]}  e6 {[%clk 0:02:56]} 5. Be2 {[%clk 0:03:01]}  c5 {[%clk 0:02:55]} 6. Be3 {[%clk 0:03:00]}  Qb6 {[%clk 0:02:51]} 7. Nc3 {[%clk 0:02:58]}  Qxb2 {[%clk 0:02:27]} 8. Qb1 {[%clk 0:02:57]}  Qxb1+ {[%clk 0:02:21]} 9. Rxb1 {[%clk 0:02:58]}  b6 {[%clk 0:01:47]} 10. dxc5 {[%clk 0:02:58]}  Bxc5 {[%clk 0:01:45]} 11. Bxc5 {[%clk 0:02:57]}  bxc5 {[%clk 0:01:45]} 12. Rb7 {[%clk 0:02:55]}  a6 {[%clk 0:01:39]} 13. Kd2 {[%clk 0:02:14]}  Ne7 {[%clk 0:01:32]} 14. Na4 {[%clk 0:02:05]}  Nbc6 {[%clk 0:01:20]} 15. Nxc5 {[%clk 0:01:57]}  O-O {[%clk 0:01:12]} 16. Bxa6 {[%clk 0:01:56]}  Rfc8 {[%clk 0:00:59]} 17. Rxe7 {[%clk 0:01:06]}  Nxe7 {[%clk 0:00:51]} 18. Bxc8 {[%clk 0:01:05]}  Rxc8 {[%clk 0:00:51]} 19. Nd3 {[%clk 0:01:05]}  Ra8 {[%clk 0:00:35]} 20. Nb4 {[%clk 0:01:01]}  Ra4 {[%clk 0:00:32]} 21. c3 {[%clk 0:01:01]}  Be4 {[%clk 0:00:26]} 22. Rg1 {[%clk 0:00:44]}  Bxf3 {[%clk 0:00:23]} 23. gxf3 {[%clk 0:00:45]}  Ng6 {[%clk 0:00:22]} 24. Re1 {[%clk 0:00:45]}  h6 {[%clk 0:00:18]} 25. Kc2 {[%clk 0:00:45]}  Ne7 {[%clk 0:00:17]} 26. Kb3 {[%clk 0:00:44]}  Ra7 {[%clk 0:00:15]} 27. a4 {[%clk 0:00:39]}  Nf5 {[%clk 0:00:15]} 28. Rd1 {[%clk 0:00:35]}  Nh4 {[%clk 0:00:14]} 29. Rd3 {[%clk 0:00:33]}  Ng6 {[%clk 0:00:14]} 30. Re3 {[%clk 0:00:32]}  Kf8 {[%clk 0:00:13]} 31. Nc6 {[%clk 0:00:32]}  Ra6 {[%clk 0:00:12]} 32. Nd4 {[%clk 0:00:30]}  Ke7 {[%clk 0:00:11]} 33. Nb5 {[%clk 0:00:30]}  Kd7 {[%clk 0:00:11]} 34. Kb4 {[%clk 0:00:30]}  Kc6 {[%clk 0:00:11]} 35. Re1 {[%clk 0:00:24]}  Ne7 {[%clk 0:00:11]} 36. Rc1 {[%clk 0:00:23]}  Kb6 {[%clk 0:00:10]} 37. Nd6 {[%clk 0:00:20]}  Nc6+ {[%clk 0:00:10]} 38. Ka3 {[%clk 0:00:18]}  Nxe5 {[%clk 0:00:10]} 39. Rb1+ {[%clk 0:00:16]}  Kc6 {[%clk 0:00:10]} 40. Nb5 {[%clk 0:00:14]}  Nc4+ {[%clk 0:00:10]} 41. Kb4 {[%clk 0:00:14]}  Nd6 {[%clk 0:00:09]} 42. Rg1 {[%clk 0:00:07]}  g6 {[%clk 0:00:07]} 43. Nd4+ {[%clk 0:00:04]}  Kb6 {[%clk 0:00:06]} 44. Rb1 {[%clk 0:00:04]}  Kc7 {[%clk 0:00:04]} 45. Ka3 {[%clk 0:00:02]}  Nc4+ {[%clk 0:00:04]} 46. Kb4 {[%clk 0:00:02]}  Nb6 {[%clk 0:00:04]} 47. Nb5+ {[%clk 0:00:03]}  Kd7 {[%clk 0:00:03]} 48. a5 {[%clk 0:00:03]}  Nc4 {[%clk 0:00:03]} 49. Ra1 {[%clk 0:00:04]}  Kc6 {[%clk 0:00:03]} 50. Nd4+ {[%clk 0:00:04]}  Kd6 {[%clk 0:00:03]} 51. Kb5 {[%clk 0:00:04]}  Ra8 {[%clk 0:00:02]} 52. Nc6 {[%clk 0:00:04]}  Kc7 {[%clk 0:00:02]} 53. a6 {[%clk 0:00:03]}  Nd6+ {[%clk 0:00:02]} 54. Kc5 {[%clk 0:00:04]}  Nc8 {[%clk 0:00:00]} 55. a7 {[%clk 0:00:04]} 1-0


[Site "https://www.chess.com"]

[Event "Titled Tuesday Blitz August 08 Early 2023"]
[White "Shapiro, Daniel"]
[Black "Kohler, Aran"]
[WhiteFideId "2001780"]
[BlackFideId "1002856"]
[WhiteElo "2341"]
[BlackElo "2255"]
[Result "1-0"]
[Round "9"]
[TimeControl "180+1"]
[Date "2023.08.08"]
[WhiteClock "0:00:28"]
[BlackClock "0:00:07"]
[Board "162"]

1. d4 {[%clk 0:03:00]}  d5 {[%clk 0:02:59]} 2. c4 {[%clk 0:03:00]}  c6 {[%clk 0:02:59]} 3. Nf3 {[%clk 0:02:59]}  Nf6 {[%clk 0:02:59]} 4. Qb3 {[%clk 0:02:59]}  e6 {[%clk 0:02:55]} 5. Nc3 {[%clk 0:02:59]}  a6 {[%clk 0:02:55]} 6. c5 {[%clk 0:02:56]}  Nbd7 {[%clk 0:02:54]} 7. Bf4 {[%clk 0:02:45]}  b6 {[%clk 0:02:34]} 8. cxb6 {[%clk 0:02:40]}  Qxb6 {[%clk 0:02:32]} 9. Qc2 {[%clk 0:02:24]}  Bb4 {[%clk 0:02:22]} 10. e3 {[%clk 0:02:22]}  Ne4 {[%clk 0:02:19]} 11. Bd3 {[%clk 0:02:20]}  f5 {[%clk 0:02:15]} 12. O-O {[%clk 0:02:18]}  O-O {[%clk 0:02:12]} 13. Na4 {[%clk 0:02:11]}  Qb7 {[%clk 0:02:03]} 14. a3 {[%clk 0:02:10]}  Be7 {[%clk 0:02:03]} 15. Rac1 {[%clk 0:02:03]}  c5 {[%clk 0:01:57]} 16. dxc5 {[%clk 0:01:51]}  Ndxc5 {[%clk 0:01:54]} 17. Nxc5 {[%clk 0:01:50]}  Nxc5 {[%clk 0:01:51]} 18. Be2 {[%clk 0:01:50]}  Bd7 {[%clk 0:01:46]} 19. b4 {[%clk 0:01:41]}  Ba4 {[%clk 0:01:42]} 20. Qa2 {[%clk 0:01:34]}  Nd7 {[%clk 0:01:28]} 21. h3 {[%clk 0:01:06]}  Rfc8 {[%clk 0:01:20]} 22. Bh2 {[%clk 0:01:06]}  Rxc1 {[%clk 0:01:17]} 23. Rxc1 {[%clk 0:01:06]}  Rc8 {[%clk 0:01:17]} 24. Qb2 {[%clk 0:01:07]}  Bf6 {[%clk 0:01:14]} 25. Qd2 {[%clk 0:01:06]}  Rxc1+ {[%clk 0:01:08]} 26. Qxc1 {[%clk 0:01:06]}  Bb5 {[%clk 0:00:53]} 27. Bd1 {[%clk 0:01:01]}  Bc4 {[%clk 0:00:49]} 28. Nd2 {[%clk 0:00:58]}  Nb6 {[%clk 0:00:41]} 29. a4 {[%clk 0:00:55]}  Qc6 {[%clk 0:00:34]} 30. a5 {[%clk 0:00:52]}  Na4 {[%clk 0:00:34]} 31. Nxc4 {[%clk 0:00:51]}  dxc4 {[%clk 0:00:32]} 32. Bxa4 {[%clk 0:00:38]}  Qxa4 {[%clk 0:00:32]} 33. Qxc4 {[%clk 0:00:37]}  Qd1+ {[%clk 0:00:23]} 34. Qf1 {[%clk 0:00:37]}  Qxf1+ {[%clk 0:00:22]} 35. Kxf1 {[%clk 0:00:36]}  Bc3 {[%clk 0:00:22]} 36. Bd6 {[%clk 0:00:36]}  Kf7 {[%clk 0:00:20]} 37. Ke2 {[%clk 0:00:36]}  Ke8 {[%clk 0:00:20]} 38. Kd3 {[%clk 0:00:36]}  Be1 {[%clk 0:00:20]} 39. f3 {[%clk 0:00:35]}  Kd7 {[%clk 0:00:20]} 40. Bc5 {[%clk 0:00:34]}  Kc6 {[%clk 0:00:21]} 41. Kc4 {[%clk 0:00:33]}  e5 {[%clk 0:00:18]} 42. Bf8 {[%clk 0:00:31]}  g6 {[%clk 0:00:17]} 43. Bg7 {[%clk 0:00:31]}  e4 {[%clk 0:00:16]} 44. fxe4 {[%clk 0:00:29]}  fxe4 {[%clk 0:00:16]} 45. Bf8 {[%clk 0:00:30]}  h5 {[%clk 0:00:15]} 46. Kd4 {[%clk 0:00:30]}  Kb5 {[%clk 0:00:14]} 47. Kxe4 {[%clk 0:00:29]}  Bxb4 {[%clk 0:00:14]} 48. Bxb4 {[%clk 0:00:25]}  Kxb4 {[%clk 0:00:15]} 49. Kd4 {[%clk 0:00:25]}  Kxa5 {[%clk 0:00:15]} 50. Kc5 {[%clk 0:00:26]}  Ka4 {[%clk 0:00:15]} 51. e4 {[%clk 0:00:25]}  Kb3 {[%clk 0:00:15]} 52. e5 {[%clk 0:00:26]}  a5 {[%clk 0:00:15]} 53. e6 {[%clk 0:00:26]}  a4 {[%clk 0:00:16]} 54. e7 {[%clk 0:00:27]}  a3 {[%clk 0:00:17]} 55. e8=Q {[%clk 0:00:28]}  a2 {[%clk 0:00:18]} 56. Qe5 {[%clk 0:00:27]}  g5 {[%clk 0:00:11]} 57. Qa1 {[%clk 0:00:27]}  g4 {[%clk 0:00:10]} 58. hxg4 {[%clk 0:00:26]}  hxg4 {[%clk 0:00:11]} 59. Kd4 {[%clk 0:00:27]}  g3 {[%clk 0:00:11]} 60. Ke3 {[%clk 0:00:27]}  Ka3 {[%clk 0:00:10]} 61. Kf3 {[%clk 0:00:28]}  Kb3 {[%clk 0:00:07]} 62. Kxg3 {[%clk 0:00:28]} 1-0


[Site "https://www.chess.com"]

[Event "Titled Tuesday Blitz August 08 Early 2023"]
[White "Thiel, Thomas"]
[Black "Goswami, Vedant"]
[WhiteFideId "4615964"]
[BlackFideId "5003725"]
[WhiteElo "2209"]
[BlackElo "2292"]
[Result "0-1"]
[Round "9"]
[TimeControl "180+1"]
[Date "2023.08.08"]
[WhiteClock "0:00:00"]
[BlackClock "0:01:03"]
[Board "166"]

1. e4 {[%clk 0:03:00]}  c5 {[%clk 0:02:54]} 2. Nc3 {[%clk 0:02:59]}  Nc6 {[%clk 0:02:53]} 3. Bb5 {[%clk 0:02:59]}  Nd4 {[%clk 0:02:51]} 4. Bc4 {[%clk 0:02:58]}  e6 {[%clk 0:02:51]} 5. Nge2 {[%clk 0:02:57]}  a6 {[%clk 0:02:52]} 6. d3 {[%clk 0:02:55]}  b5 {[%clk 0:02:52]} 7. Bb3 {[%clk 0:02:55]}  Nxb3 {[%clk 0:02:50]} 8. axb3 {[%clk 0:02:56]}  Bb7 {[%clk 0:02:51]} 9. O-O {[%clk 0:02:55]}  d5 {[%clk 0:02:51]} 10. exd5 {[%clk 0:02:52]}  exd5 {[%clk 0:02:51]} 11. d4 {[%clk 0:02:51]}  Nf6 {[%clk 0:02:50]} 12. Bg5 {[%clk 0:02:49]}  c4 {[%clk 0:02:44]} 13. Ng3 {[%clk 0:02:26]}  Be7 {[%clk 0:02:39]} 14. Nf5 {[%clk 0:02:24]}  O-O {[%clk 0:02:25]} 15. Re1 {[%clk 0:02:14]}  Bb4 {[%clk 0:02:18]} 16. Qf3 {[%clk 0:02:06]}  Bc8 {[%clk 0:01:56]} 17. Nh6+ {[%clk 0:02:04]}  Kh8 {[%clk 0:01:54]} 18. Bxf6 {[%clk 0:02:04]}  Qxf6 {[%clk 0:01:49]} 19. Qxf6 {[%clk 0:02:03]}  gxf6 {[%clk 0:01:50]} 20. f3 {[%clk 0:01:29]}  cxb3 {[%clk 0:01:47]} 21. cxb3 {[%clk 0:01:27]}  Kg7 {[%clk 0:01:36]} 22. Ng4 {[%clk 0:01:25]}  Be6 {[%clk 0:01:35]} 23. Ne3 {[%clk 0:01:23]}  Rfd8 {[%clk 0:01:31]} 24. Rec1 {[%clk 0:01:19]}  Bd6 {[%clk 0:01:24]} 25. Ncxd5 {[%clk 0:01:06]}  Bxd5 {[%clk 0:01:23]} 26. Nxd5 {[%clk 0:01:04]}  Bxh2+ {[%clk 0:01:23]} 27. Kxh2 {[%clk 0:01:04]}  Rxd5 {[%clk 0:01:24]} 28. Rd1 {[%clk 0:01:01]}  a5 {[%clk 0:01:22]} 29. Kg3 {[%clk 0:00:50]}  f5 {[%clk 0:01:18]} 30. Kf4 {[%clk 0:00:49]}  Kf6 {[%clk 0:01:17]} 31. Ke3 {[%clk 0:00:48]}  Re8+ {[%clk 0:01:14]} 32. Kd3 {[%clk 0:00:48]}  b4 {[%clk 0:01:11]} 33. Re1 {[%clk 0:00:25]}  Red8 {[%clk 0:01:09]} 34. Kc2 {[%clk 0:00:16]}  Rxd4 {[%clk 0:01:05]} 35. Rxa5 {[%clk 0:00:14]}  Rd2+ {[%clk 0:01:06]} 36. Kb1 {[%clk 0:00:13]}  Rxg2 {[%clk 0:01:06]} 37. Ree5 {[%clk 0:00:07]}  Rd1+ {[%clk 0:01:04]} 38. Ka2 {[%clk 0:00:06]}  Rgg1 {[%clk 0:01:03]} 39. Rxf5+ {[%clk 0:00:00]}  Kg6 {[%clk 0:01:03]} 0-1


[Site "https://www.chess.com"]

[Event "Titled Tuesday Blitz August 08 Early 2023"]
[White "Petersson, Kjell"]
[Black "Davidson, Kevin"]
[WhiteFideId "1705148"]
[BlackFideId "2056810"]
[WhiteElo "2194"]
[BlackElo "2365"]
[Result "0-1"]
[Round "9"]
[TimeControl "180+1"]
[Date "2023.08.08"]
[WhiteClock "0:00:00"]
[BlackClock "0:00:09"]
[Board "170"]

1. d4 {[%clk 0:03:00]}  Nf6 {[%clk 0:02:59]} 2. Bf4 {[%clk 0:03:01]}  g6 {[%clk 0:02:59]} 3. Nc3 {[%clk 0:03:00]}  Bg7 {[%clk 0:02:59]} 4. e4 {[%clk 0:03:00]}  d6 {[%clk 0:03:00]} 5. Qd2 {[%clk 0:03:00]}  c6 {[%clk 0:03:00]} 6. O-O-O {[%clk 0:02:56]}  b5 {[%clk 0:03:00]} 7. f3 {[%clk 0:02:54]}  b4 {[%clk 0:02:59]} 8. Nce2 {[%clk 0:02:54]}  Qa5 {[%clk 0:02:49]} 9. Kb1 {[%clk 0:02:51]}  Be6 {[%clk 0:02:48]} 10. Nc1 {[%clk 0:02:51]}  Nbd7 {[%clk 0:02:47]} 11. Bh6 {[%clk 0:02:43]}  Bxh6 {[%clk 0:02:36]} 12. Qxh6 {[%clk 0:02:44]}  Qb6 {[%clk 0:02:15]} 13. Nge2 {[%clk 0:02:35]}  Bc4 {[%clk 0:02:10]} 14. Ng3 {[%clk 0:02:22]}  Bxf1 {[%clk 0:02:08]} 15. Rhxf1 {[%clk 0:02:20]}  c5 {[%clk 0:01:53]} 16. dxc5 {[%clk 0:01:51]}  Nxc5 {[%clk 0:01:51]} 17. h4 {[%clk 0:01:48]}  a5 {[%clk 0:01:37]} 18. h5 {[%clk 0:01:47]}  Na4 {[%clk 0:01:26]} 19. Nd3 {[%clk 0:01:04]}  Rc8 {[%clk 0:01:01]} 20. hxg6 {[%clk 0:00:59]}  fxg6 {[%clk 0:01:00]} 21. Qh3 {[%clk 0:00:47]}  Qc7 {[%clk 0:00:39]} 22. Rd2 {[%clk 0:00:43]}  O-O {[%clk 0:00:39]} 23. Rh1 {[%clk 0:00:38]}  Qd7 {[%clk 0:00:28]} 24. Qh6 {[%clk 0:00:36]}  Qe6 {[%clk 0:00:22]} 25. Nf4 {[%clk 0:00:29]}  Qf7 {[%clk 0:00:21]} 26. Nd5 {[%clk 0:00:24]}  Nxd5 {[%clk 0:00:15]} 27. Rxd5 {[%clk 0:00:25]}  Rc5 {[%clk 0:00:15]} 28. Rxc5 {[%clk 0:00:22]}  Nxc5 {[%clk 0:00:15]} 29. Ne2 {[%clk 0:00:20]}  Qg7 {[%clk 0:00:14]} 30. Qh3 {[%clk 0:00:20]}  Qf7 {[%clk 0:00:14]} 31. Nd4 {[%clk 0:00:19]}  e5 {[%clk 0:00:13]} 32. Ne2 {[%clk 0:00:16]}  a4 {[%clk 0:00:12]} 33. Rd1 {[%clk 0:00:14]}  Qc7 {[%clk 0:00:09]} 34. Qh4 {[%clk 0:00:10]}  Rc8 {[%clk 0:00:09]} 35. Rc1 {[%clk 0:00:07]}  Kg7 {[%clk 0:00:09]} 36. g4 {[%clk 0:00:05]}  Qf7 {[%clk 0:00:09]} 37. Qh3 {[%clk 0:00:04]}  Rf8 {[%clk 0:00:09]} 38. Rf1 {[%clk 0:00:00]}  Nxe4 {[%clk 0:00:09]} 0-1


[Site "https://www.chess.com"]

[Event "Titled Tuesday Blitz August 08 Early 2023"]
[White "cycygogne"]
[Black "Ai, Evan"]
[BlackFideId "2094770"]
[WhiteElo "2173"]
[BlackElo "2323"]
[Result "1-0"]
[Round "9"]
[TimeControl "180+1"]
[Date "2023.08.08"]
[WhiteClock "0:00:12"]
[BlackClock "0:00:02"]
[Board "172"]

1. e4 {[%clk 0:03:00]}  c5 {[%clk 0:02:37]} 2. Nf3 {[%clk 0:03:00]}  d6 {[%clk 0:02:35]} 3. d4 {[%clk 0:02:59]}  cxd4 {[%clk 0:02:36]} 4. Nxd4 {[%clk 0:03:00]}  Nf6 {[%clk 0:02:33]} 5. Nc3 {[%clk 0:03:00]}  a6 {[%clk 0:02:33]} 6. Bg5 {[%clk 0:03:00]}  e6 {[%clk 0:02:32]} 7. Qf3 {[%clk 0:03:00]}  Be7 {[%clk 0:02:28]} 8. O-O-O {[%clk 0:03:00]}  Qc7 {[%clk 0:02:28]} 9. Qg3 {[%clk 0:03:00]}  Nbd7 {[%clk 0:02:26]} 10. f4 {[%clk 0:03:00]}  b5 {[%clk 0:02:25]} 11. e5 {[%clk 0:02:56]}  dxe5 {[%clk 0:02:08]} 12. fxe5 {[%clk 0:02:57]}  Nh5 {[%clk 0:02:08]} 13. Qh4 {[%clk 0:02:52]}  Bxg5+ {[%clk 0:02:04]} 14. Qxg5 {[%clk 0:02:49]}  Qxe5 {[%clk 0:02:04]} 15. Qxe5 {[%clk 0:02:26]}  Nxe5 {[%clk 0:02:05]} 16. Be2 {[%clk 0:02:25]}  Nf4 {[%clk 0:01:48]} 17. Bf3 {[%clk 0:02:23]}  Nxf3 {[%clk 0:01:29]} 18. gxf3 {[%clk 0:02:24]}  Bb7 {[%clk 0:01:29]} 19. Ne4 {[%clk 0:02:22]}  Ke7 {[%clk 0:01:21]} 20. Rhg1 {[%clk 0:02:14]}  g6 {[%clk 0:01:19]} 21. Rg4 {[%clk 0:02:07]}  Nd5 {[%clk 0:01:17]} 22. Nc5 {[%clk 0:02:05]}  Bc8 {[%clk 0:01:12]} 23. Re4 {[%clk 0:01:47]}  Kd6 {[%clk 0:01:00]} 24. b4 {[%clk 0:01:47]}  Kc7 {[%clk 0:00:37]} 25. Rd3 {[%clk 0:01:35]}  Nxb4 {[%clk 0:00:32]} 26. Ra3 {[%clk 0:01:26]}  Kb6 {[%clk 0:00:32]} 27. Ndb3 {[%clk 0:01:12]}  Nd5 {[%clk 0:00:27]} 28. c4 {[%clk 0:01:11]}  Nc3 {[%clk 0:00:25]} 29. Re3 {[%clk 0:01:05]}  b4 {[%clk 0:00:25]} 30. Ra4 {[%clk 0:01:03]}  Rd8 {[%clk 0:00:26]} 31. Rxb4+ {[%clk 0:01:01]}  Kc6 {[%clk 0:00:22]} 32. Rxc3 {[%clk 0:01:01]}  e5 {[%clk 0:00:21]} 33. Ne4 {[%clk 0:00:55]}  f5 {[%clk 0:00:21]} 34. Na5+ {[%clk 0:00:54]}  Kc7 {[%clk 0:00:20]} 35. Nc5 {[%clk 0:00:49]}  Rd4 {[%clk 0:00:20]} 36. Rd3 {[%clk 0:00:43]}  Rxd3 {[%clk 0:00:19]} 37. Nxd3 {[%clk 0:00:44]}  e4 {[%clk 0:00:17]} 38. fxe4 {[%clk 0:00:44]}  fxe4 {[%clk 0:00:18]} 39. Nf4 {[%clk 0:00:44]}  Kd6 {[%clk 0:00:16]} 40. Kd2 {[%clk 0:00:39]}  Ke5 {[%clk 0:00:17]} 41. Ke3 {[%clk 0:00:39]}  g5 {[%clk 0:00:14]} 42. Ne2 {[%clk 0:00:32]}  Be6 {[%clk 0:00:11]} 43. Nc6+ {[%clk 0:00:31]}  Kd6 {[%clk 0:00:10]} 44. Ncd4 {[%clk 0:00:31]}  Bg4 {[%clk 0:00:05]} 45. Rb6+ {[%clk 0:00:28]}  Kc5 {[%clk 0:00:05]} 46. Rc6+ {[%clk 0:00:28]}  Kb4 {[%clk 0:00:05]} 47. Nc1 {[%clk 0:00:21]}  Kc3 {[%clk 0:00:03]} 48. c5 {[%clk 0:00:20]}  Rd8 {[%clk 0:00:03]} 49. Ncb3 {[%clk 0:00:18]}  Bd1 {[%clk 0:00:03]} 50. Rd6 {[%clk 0:00:17]}  Re8 {[%clk 0:00:02]} 51. c6 {[%clk 0:00:15]}  Bxb3 {[%clk 0:00:02]} 52. axb3 {[%clk 0:00:13]}  Kb4 {[%clk 0:00:03]} 53. c7 {[%clk 0:00:13]}  Kc5 {[%clk 0:00:02]} 54. Rd8 {[%clk 0:00:12]} 1-0


[Site "https://www.chess.com"]